Workbook

Sheet CONTROL
M1: English | N1: 1
M2: French
B3: =IF(lang=1,M4,M5) -> PRINCIPAL'S YEARLY REPORT
B4: =IF(lang=1,M7,M8) -> Select your division name from the drop down list | M4: PRINCIPAL'S YEARLY REPORT
M5: RAPPORT ANNUEL DES DIRECTEURS D’ÉCOLES
M7: Select your division name from the drop down list
M8: Pour personnaliser ces formulaires pour votre division ou district scolaire, cliquez sur la flèche descendante et sélectionnez le nom de votre division ou district scolaire dans la liste déroulante (la liste est en ordre alphabétique) :
B11: =IF(lang=1,M12,M13) -> Select the applicable reporting date:
M12: Select the applicable reporting date:
M13: Pour mettre à jour ce formulaire dans l’avenir, sélectionnez une nouvelle date de rapport dans la liste déroulante ci-dessous :

Sheet Instructions-English
A2: FB 114 - PRINCIPAL'S YEARLY REPORT
A4: Further details to assist school divisions in meeting the requirements for the reporting of categorical grant data and information is available in the Public Schools Enrolment and Categorical Grants Reporting booklet available on the Internet at:
A8: www.edu.gov.mb.ca/k12/finance/index.html
A10: SCHOOL CLOSURES
A11: School boards are required to operate each school in the division for not less than the number of days in the school year as prescribed by
A12: the Minister under the School Days, Hours and Vacations Regulation, Manitoba Regulation (M.R.) 101/95. M.R. 101/95 also requires prompt
A13: communication of any incidental closing of a school from any cause to the Minister. Incidental closures may result in a loss of operating grant
A14: under the Funding of Schools Program where the requirements of M.R. 101/95 have not been met.
B17: FB 114 - Principal’s Yearly Report
B18: Reporting Date: June 30
B20: The FB 114 form is for divisional use only and should not be returned to the Schools’ Finance Branch.
B21: The FB 114 form is used by school principals for reporting data for each school in order to complete the FB 114S - Summary of School Closures file. Data collected includes number of days open, number of scheduled closures and dates of incidental closures. The dates of incidental closures should be supported by corresponding FB 114N forms or other letters of authority. The FB 114 form is for school division internal use only and should NOT be returned to Education Funding Branch.
B27: Enter the following information on the form:
B28: Section A - School Days:
B29: ● School Name
B30: ● Principal's Name
B31: ● Total number of days school was open
B32: Section B - Scheduled Closures:
B33: ● Number of days (full and half) for each reason listed
B34: Section C - Incidental Closures:
B35: ● Reasons for closing
B36: ● For each reason, date of closure and full or half day
B37: ● Number of days (full and half) for each reason listed
B39: Provide appropriate dates and signatures.

Sheet Instructions-Francais
B2: DIRECTIVES POUR REMPLIR ET REMETTRE LES FORMULAIRES
B3: FB 114 – RAPPORT ANNUEL DES DIRECTEURS D’ÉCOLES
B5: DATES DE COMMUNICATION DES RAPPORTS ET RENSEIGNEMENTS
C6: Lorsque la date de communication du rapport tombe une fin de semaine ou un jour férié, la date de communication est le dernier jour d’école qui précède la fin de semaine ou le jour férié.
C9: Lorsque la date d’échéance tombe une fin de semaine ou un jour férié, la date d’échéance est le dernier jour ouvrable qui précède la fin de semaine ou le jour férié.
C12: Les dates de communication réelles pour l’année scolaire en cours (Annexe E) ainsi que d’autres renseignements servant à aider les divisions scolaires à répondre aux exigences relatives à la communication des données sur les subventions par catégorie et des pièces justificatives sont compris dans le document Communication des données sur les inscriptions et les subventions par catégorie des écoles publiques qui se trouve à l’adresse Web suivante :
C15: www.edu.gov.mb.ca/m12/stat-fin/index.html
C17: DESCRIPTION ET DIRECTIVES
C18: Cliquez sur l’onglet « MISE À JOUR » dans le présent classeur pour mettre à jour, à l'année scolaire réelle, les dates de communication
C19: des formulaires. Pour avoir accès au formulaire, cliquez sur l’onglet portant le numéro de formulaire correspondant. Si vous remplissez
C20: le formulaire électroniquement, n’oubliez pas d’enregistrer le fichier duquel provient la copie que vous avez imprimée.
B24: FERMETURES D’ÉCOLE
B25: Les commissions scolaires sont tenues d’ouvrir chacune des écoles de la division pour le nombre minimal de jours dans l’année scolaire
B26: prescrit par le ministre en vertu du Règlement sur les jours, les heures et les vacances scolaires (R.M 101/95). Le Règlement exige
B27: également que toute fermeture d’école imprévue, pour toute raison, soit immédiatement communiquée au ministre. Les fermetures imprévues
B28: pourraient entraîner la perte de la subvention de fonctionnement aux termes du Programme de financement des écoles là où les exigences
B29: du R.M 101/95 n’ont pas été respectées.
C31: FB 114 – Rapport annuel des directeurs d’école
C32: Date de communication : le 30 juin
C34: Les formulaires FB 114 sont réservés à l’usage de la division et ne doivent pas être renvoyés à la Direction des finances des écoles.
C35: Le formulaire FB 114 est utilisé par les directeurs d’école pour communiquer les données servant à remplir le fichier FB 114S -
C36: Sommaire des fermetures d’écoles. Les données recueillies comprennent le nombre de jours d’ouverture de l’école, le nombre de
C37: jours de fermeture prévue et le nombre de jours de fermeture imprévue. Les dates des fermetures imprévues doivent être
C38: accompagnées des formulaires FB 114N correspondants ou toute autre lettre d’autorisation. Le formulaire FB 114 est réservé à l’usage
C39: de la division et ne doit PAS être transmise à la Direction des finances des écoles.
C41: Fournissez les renseignements suivants sur le formulaire :
C42: Section A – Jours d’école :
C43: • nom de l’école;
C44: • nom de la directrice ou du directeur;
C45: • nombre total de jours d’ouverture.
C46: Section B – Jours de fermeture prévue :
C47: • nombre de jours (jour entier et demi-journée) de fermeture pour chaque raison énumérée.
C48: Section C – Jours de fermeture imprévue :
C49: • raisons de la fermeture;
C50: • pour chaque raison énumérée, indiquez la date de la fermeture et la durée (jour entier ou demi-journée);
C51: • nombre de jours (jour entier et demi-journée) de fermeture pour chaque raison énumérée.
C53: Fournissez les dates et les signatures pertinentes.
C55: DIRECTIVES POUR TRANSMETTRE LES FORMULAIRES
C57: Les formulaires ne peuvent être ni signés ni transmis avant la date de communication indiquée.
C59: Remplissez le formulaire avec les renseignements requis.
C60: Enregistrez le formulaire rempli sur votre réseau local et imprimez des copies papiers.
C61: Obtenez les signatures pertinentes.
C63: Une fois que vous aurez rempli les formulaires appropriés et obtenu les signatures requises, transmettez les formulaires et les fichiers
C64: électroniques (le cas échéant) directement à la Direction des finances des écoles.
D66: FB 114S – Sommaire des fermetures d’écoles (date d'échéance : le 7 juillet)
B69: PERSONNES-RESSOURCES :
B71: Si vous avez des questions concernant les formulaires ou le fichier informatique, veuillez communiquer avec :
B72: la Direction des finances des écoles – ( 204 945-6910, +

Sheet FB114 Principal Yearly Report
O1: =+Tables!J728 -> 1
C2: =IF(lang=1,U2,U3) -> Principal's Yearly Report for the 2024 / 2025 School Year | O2: =+Tables!J729 -> 2 | P2: =+Tables!K729 ->  | U2: ="Principal's Yearly Report for the "&VLOOKUP(YEARNUM,YEARTABLE,2)&" School Year" -> Principal's Yearly Report for the 2024 / 2025 School Year
O3: =+Tables!J730 -> 3 | P3: =+Tables!K730 ->  | U3: ="Rapport annuel des directeurs d'école année scolaire "&VLOOKUP(YEARNUM,YEARTABLE,2) -> Rapport annuel des directeurs d'école année scolaire 2024 / 2025
C4: =IF(lang=1,U5,U6) -> The FB 114 (Principal's Yearly Report) is for school division internal use only unless requested by the department. | O4: =+Tables!J731 -> 4 | P4: =+Tables!K731 -> 
O5: =+Tables!J732 -> 5 | P5: =+Tables!K732 ->  | U5: The FB 114 (Principal's Yearly Report) is for school division internal use only unless requested by the department.
O6: =+Tables!J733 -> 6 | P6: =+Tables!K733 -> 
C7: =IF(lang=1,U8,U9) -> To Be Completed By Every Principal In The School Division On The Last Day Of The School Year | O7: =+Tables!J734 -> 7 | P7: =+Tables!K734 -> 
O8: =+Tables!J735 -> 8 | P8: =+Tables!K735 ->  | U8: To Be Completed By Every Principal In The School Division On The Last Day Of The School Year
C9: =IF(lang=1,U10,V10) -> School Division: | E9: =IF(DIVNUM=1,""," "&DIVNAME) ->  | O9: =+Tables!J736 -> 9 | P9: =+Tables!K736 ->  | U9: Tous les directeurs de la division scolaire doivent remplir ce rapport le dernier jour de l'année scolaire
C10: =IF(lang=1,U11,V11) -> School Name: | O10: =+Tables!J737 -> 10 | P10: =+Tables!K737 ->  | U10: School Division: | V10: Division scolaire:
C11: =IF(lang=1,U12,V12) -> Principal's Name: | O11: =+Tables!J738 -> 11 | P11: =+Tables!K738 ->  | U11: School Name: | V11: Nom de l'école:
O12: =+Tables!J739 -> 12 | P12: =+Tables!K739 ->  | U12: Principal's Name: | V12: Nom du directrice ou directeur:
C13: =IF(lang=1,U13,V13) -> Section A: School Days | O13: =+Tables!J740 -> 13 | P13: =+Tables!K740 ->  | U13: Section A: School Days | V13: Section A : Jours d'école
C14: =IF(lang=1,U14,V14) -> Number of days the School was open | O14: =+Tables!J741 -> 14 | P14: =+Tables!K741 ->  | U14: Number of days the School was open | V14: Nombre total de jours d'ouverture
C15: =IF(lang=1,U15,V15) -> (Do NOT include DAYS CLOSED listed in Sections B and C below.) | L15: (A) | O15: =+Tables!J742 -> 15 | P15: =+Tables!K742 ->  | U15: (Do NOT include DAYS CLOSED listed in Sections B and C below.) | V15: (Ne PAS inclure les JOURS DE FERMETURE indiqués aux sections B et C ci-dessous.)
O16: =+Tables!J743 -> 16 | P16: =+Tables!K743 -> 
C17: =IF(lang=1,U17,V17) -> Section B: Scheduled Closures | O17: =+Tables!J744 -> 17 | P17: =+Tables!K744 ->  | U17: Section B: Scheduled Closures | V17: Section B : Jours de fermeture prévue
I18: =IF(lang=1,X18,Y18) -> Days Closed | O18: =+Tables!J745 -> 18 | P18: =+Tables!K745 ->  | U18: Reason for Closing | V18: Raison de la fermeture | X18: Days Closed | Y18: Jours fermés
C19: =IF(lang=1,U18,V18) -> Reason for Closing | I19: =IF(lang=1,X19,Y19) -> ( Full-Day = 1.0, | O19: =+Tables!J746 -> 19 | P19: =+Tables!K746 ->  | X19: ( Full-Day = 1.0, | Y19: (Jour entier = 1,0
I20: =IF(lang=1,X20,Y20) -> A.M. or P.M. = .5 ) | O20: =+Tables!J747 -> 20 | P20: =+Tables!K747 ->  | X20: A.M. or P.M. = .5 ) | Y20: a.m. ou p.m. = 0.5 )
C21: =IF(lang=1,U21,V21) -> Teacher In - Service (Professional Development must be a min of 5 days) | O21: =+Tables!J748 -> 21 | P21: =+Tables!K748 ->  | U21: Teacher In - Service (Professional Development must be a min of 5 days) | V21: Journée pédagogique (doit être un minimum de 5 jours)
C22: =IF(lang=1,U22,V22) -> Administration Days | K22: =SUM(I21:I23) -> 0 | L22: (B) | O22: =+Tables!J749 -> 22 | P22: =+Tables!K749 ->  | U22: Administration Days | V22: Administration
O23: =+Tables!J750 -> 23 | P23: =+Tables!K750 -> 
C24: =IF(lang=1,U24,V24) -> Section C: Incidental Closures | O24: =+Tables!J751 -> 24 | P24: =+Tables!K751 ->  | U24: Section C: Incidental Closures | V24: Section C : Jours de fermeture imprévue (1)
C25: =IF(lang=1,U25,V25) -> Reason for Closing | E25: =IF(lang=1,X25,Y25) -> Date of Closure | I25: =IF(lang=1,Z25,AA25) -> Days Closed | O25: =+Tables!J752 -> 25 | P25: =+Tables!K752 ->  | U25: Reason for Closing | V25: Raison de la fermeture | X25: Date of Closure | Y25: Date de la fermeture | Z25: Days Closed | AA25: Jours fermés
C26: =IF(lang=1,U26,V26) -> Incidental closures must be reported by | E26: =IF(lang=1,X26,Y26) -> Month | F26: =IF(lang=1,X27,Y27) -> Day | H26: =IF(lang=1,U28,V28) -> Full-Day, | I26: =IF(lang=1,Z26,AA26) -> ( Full-Day = 1.0, | O26: =+Tables!J753 -> 26 | P26: =+Tables!K753 ->  | U26: Incidental closures must be reported by | X26: Month | Y26: Jour | Z26: ( Full-Day = 1.0, | AA26: (Jour entier = 1,0
C27: =IF(lang=1,U27,V27) -> completing online form | H27: =IF(lang=1,U29,V29) -> A.M. or P.M. | I27: =IF(lang=1,Z27,AA27) -> A.M. or P.M. = .5 ) | O27: =+Tables!J754 -> 27 | P27: =+Tables!K754 ->  | U27: completing online form | X27: Day | Y27: Mois | Z27: A.M. or P.M. = .5 ) | AA27: a.m. ou p.m. = 0.5 )
H28: =VLOOKUP(DAYCODE1,AMPMTABLE,4) -> 0 | I28: =VLOOKUP(DAYCODE1,AMPMTABLE,3) -> 0 | O28: =+Tables!J755 -> 28 | P28: =+Tables!K755 ->  | U28: Full-Day, | V28: Jour entier
H29: =VLOOKUP(DAYCODE2,AMPMTABLE,4) -> 0 | I29: =VLOOKUP(DAYCODE2,AMPMTABLE,3) -> 0 | O29: =+Tables!J756 -> 29 | P29: =+Tables!K756 ->  | U29: A.M. or P.M. | V29: a.m. ou p.m.
H30: =VLOOKUP(DAYCODE3,AMPMTABLE,4) -> 0 | I30: =VLOOKUP(DAYCODE3,AMPMTABLE,3) -> 0 | O30: =+Tables!J757 -> 30 | P30: =+Tables!K757 -> 
H31: =VLOOKUP(DAYCODE4,AMPMTABLE,4) -> 0 | I31: =VLOOKUP(DAYCODE4,AMPMTABLE,3) -> 0 | O31: =+Tables!J758 -> 31 | P31: =+Tables!K758 -> 
H32: =VLOOKUP(DAYCODE5,AMPMTABLE,4) -> 0 | I32: =VLOOKUP(DAYCODE5,AMPMTABLE,3) -> 0 | O32: =+Tables!J759 -> 32 | P32: =+Tables!K759 -> 
H33: =VLOOKUP(DAYCODE6,AMPMTABLE,4) -> 0 | I33: =VLOOKUP(DAYCODE6,AMPMTABLE,3) -> 0 | O33: =+Tables!J760 -> 33 | P33: =+Tables!K760 -> 
H34: =VLOOKUP(DAYCODE7,AMPMTABLE,4) -> 0 | I34: =VLOOKUP(DAYCODE7,AMPMTABLE,3) -> 0 | O34: =+Tables!J761 -> 34 | P34: =+Tables!K761 -> 
H35: =VLOOKUP(DAYCODE8,AMPMTABLE,4) -> 0 | I35: =VLOOKUP(DAYCODE8,AMPMTABLE,3) -> 0 | O35: =+Tables!J762 -> 35 | P35: =+Tables!K762 -> 
H36: =VLOOKUP(DAYCODE9,AMPMTABLE,4) -> 0 | I36: =VLOOKUP(DAYCODE9,AMPMTABLE,3) -> 0 | O36: =+Tables!J763 -> 36 | P36: =+Tables!K763 -> 
H37: =VLOOKUP(DAYCODE10,AMPMTABLE,4) -> 0 | I37: =VLOOKUP(DAYCODE10,AMPMTABLE,3) -> 0 | K37: =SUM(I28:I37) -> 0 | L37: (C) | O37: =+Tables!J765 -> 38 | P37: =+Tables!K765 -> 
O38: =+Tables!J766 -> 39 | P38: =+Tables!K766 -> 
C39: =IF(lang=1,U39,V39) -> Total Number of School Days (A + B + C) (Maximum of 193 Days) | K39: =K15+K22+K37 -> 0 | O39: =+Tables!J767 -> 40 | P39: =+Tables!K767 ->  | U39: ="Total Number of School Days "&" (A + B + C)"&" (Maximum of "&FIXED(VLOOKUP(YEARNUM,YEARTABLE,4),0)&" Days)" -> Total Number of School Days (A + B + C) (Maximum of 193 Days) | V39: =" Nombre total de jours dans l'année scolaire (A + B + C)"&" (Maximum de "&FIXED(VLOOKUP(YEARNUM,YEARTABLE,4),0)&" jours)" -> Nombre total de jours dans l'année scolaire (A + B + C) (Maximum de 193 jours)
O40: =+Tables!J768 -> 41 | P40: =+Tables!K768 -> 
C41: =IF(lang=1,U41,V41) -> I hereby certify that, to the best of my knowledge and belief, the information furnished in this report is true and correct | O41: =+Tables!J769 -> 42 | P41: =+Tables!K769 ->  | U41: I hereby certify that, to the best of my knowledge and belief, the information furnished in this report is true and correct | V41: Nous attestons que les renseignements fournis dans le présent rapport sont, à notre connaissance,
C42: =IF(lang=1,U42,V42) -> and in accordance with the laws and regulations of the Province of Manitoba. | O42: =+Tables!J770 -> 43 | P42: =+Tables!K770 ->  | U42: and in accordance with the laws and regulations of the Province of Manitoba. | V42: véridique et exacts, conformément aux lois et règlements de la Province du Manitoba.
O43: =+Tables!J771 -> 44 | P43: =+Tables!K771 -> 
O44: =+Tables!J772 -> 45 | P44: =+Tables!K772 -> 
O45: =+Tables!J773 -> 46 | P45: =+Tables!K773 -> 
C46: =IF(lang=1,U46,V46) -> Principal | H46: DATE | O46: =+Tables!J774 -> 47 | P46: =+Tables!K774 ->  | U46: Principal | V46: Directrice ou Directeur de l’école
O47: =+Tables!J775 -> 48 | P47: =+Tables!K775 -> 
O50: =+Tables!J778 -> 51 | P50: =+Tables!K778 -> 
O51: =+Tables!J779 -> 52 | P51: =+Tables!K779 -> 
O52: =+Tables!J780 -> 53 | P52: =+Tables!K780 -> 
O53: =+Tables!J781 -> 54 | P53: =+Tables!K781 -> 
O54: =+Tables!J782 -> 55 | P54: =+Tables!K782 -> 
O55: =+Tables!J783 -> 56 | P55: =+Tables!K783 -> 
O56: =+Tables!J784 -> 57 | P56: =+Tables!K784 -> 
O57: =+Tables!J785 -> 58 | P57: =+Tables!K785 -> 
O58: =+Tables!J786 -> 59 | P58: =+Tables!K786 -> 
O59: =+Tables!J787 -> 60 | P59: =+Tables!K787 -> 
O60: =+Tables!J788 -> 61 | P60: =+Tables!K788 -> 
O61: =+Tables!J789 -> 62 | P61: =+Tables!K789 -> 
O62: =+Tables!J790 -> 63 | P62: =+Tables!K790 -> 
O63: =+Tables!J791 -> 64 | P63: =+Tables!K791 -> 
O64: =+Tables!J792 -> 65 | P64: =+Tables!K792 -> 
O65: =+Tables!J793 -> 66 | P65: =+Tables!K793 -> 
O66: =+Tables!J794 -> 67 | P66: =+Tables!K794 -> 
O67: =+Tables!J795 -> 68 | P67: =+Tables!K795 -> 
O68: =+Tables!J796 -> 69 | P68: =+Tables!K796 -> 
O69: =+Tables!J797 -> 70 | P69: =+Tables!K797 -> 
O70: =+Tables!J798 -> 71 | P70: =+Tables!K798 -> 
O71: =+Tables!J799 -> 72 | P71: =+Tables!K799 -> 
O72: =+Tables!J800 -> 73 | P72: =+Tables!K800 -> 
O73: =+Tables!J801 -> 74 | P73: =+Tables!K801 -> 
O74: =+Tables!J802 -> 75 | P74: =+Tables!K802 -> 
O75: =+Tables!J803 -> 76 | P75: =+Tables!K803 -> 
O76: =+Tables!J804 -> 77 | P76: =+Tables!K804 -> 
O77: =+Tables!J805 -> 78 | P77: =+Tables!K805 -> 
O78: =+Tables!J806 -> 79 | P78: =+Tables!K806 -> 
O79: =+Tables!J807 -> 80 | P79: =+Tables!K807 -> 
O80: =+Tables!J808 -> 81 | P80: =+Tables!K808 -> 
O81: =+Tables!J809 -> 82 | P81: =+Tables!K809 -> 0

Sheet Tables (hidden)
B1: Public Schools Table - updated 28 MAR 2017 | J1: DIVNUM | K1: 1 | O1: YEARNUM | P1: 2 | Q1: =VLOOKUP(YEARNUM,YEARTABLE,3,FALSE) -> (2024 / 2025) | R1: =VLOOKUP(YEARNUM,YEARTABLE,4,FALSE) -> 193
J2: DIVCODE | K2: =VLOOKUP(DIVNUM,DIVLIST,3) -> CODE
E3: =COUNTA(E6:E710) -> 705 | J3: DIVNAME | K3: =VLOOKUP(DIVNUM,DIVLIST,2,FALSE) -> Press arrow for School Division Name ----- > | AA3: 1 | AB3: 2023 / 2024 | AC3: (2023 / 2024) | AD3: 196
J4: =SUM(J6:J42) -> 705 | AA4: 2 | AB4: 2024 / 2025 | AC4: (2024 / 2025) | AD4: 193
B5: EIS | C5: SFB | D5: Code | E5: School Name | J5: How many schools | K5: 1 | L5: Press arrow for School Division Name ----- > | M5: CODE | AA5: 3 | AB5: 2025 / 2026 | AC5: (2025 / 2026) | AD5: 196
A6: 1 | B6: 153 | C6: BE | D6: 2202 | E6: Acadia Colony School | F6: =IF(D6=H6,"","x") ->  | G6: BE | H6: 2202 | I6: ACADIA COLONY SCHOOL | J6: =COUNTIF($C$6:$C$738,M6) -> 15 | K6: 2 | L6: Beautiful Plains | M6: BE | AA6: 4 | AB6: 2026 / 2027 | AC6: (2026 / 2027) | AD6: 191
A7: =A6+1 -> 2 | B7: 153 | C7: BE | D7: 1117 | E7: Brookdale School | F7: =IF(D7=H7,"","x") ->  | G7: BE | H7: 1117 | I7: BROOKDALE SCHOOL | J7: 16 | K7: 3 | L7: Border Land | M7: BO | AA7: 5 | AB7: 2027 / 2028 | AC7: (2027 / 2028) | AD7: 193
A8: =A7+1 -> 3 | B8: 153 | C8: BE | D8: 1434 | E8: Carberry Collegiate | G8: BE | H8: 1434 | I8: CARBERRY COLLEGIATE | J8: 24 | K8: 4 | L8: Brandon | M8: BR | O8: SELECT | P8: 2 | R8: 1 | S8: SUPERINTENDENT
A9: 4 | B9: 153 | C9: BE | D9: 2098 | E9: Fairway Colony School | G9: BE | H9: 2098 | I9: FAIRWAY COLONY SCHOOL | J9: 24 | K9: 5 | L9: Franco-Manitobaine | M9: DI | R9: 2 | S9: SECRETARY-TREASURER
A10: 5 | B10: 153 | C10: BE | D10: 1292 | E10: Hazel M. Kellington School | G10: BE | H10: 1292 | I10: HAZEL M. KELLINGTON SCHOOL | J10: 8 | K10: 6 | L10: Evergreen | M10: EV
A11: 6 | B11: 153 | C11: BE | D11: 1184 | E11: J. M. Young School | G11: BE | H11: 1184 | I11: J. M. YOUNG SCHOOL | J11: 4 | K11: 7 | L11: Flin Flon | M11: FL | O11: SCHOOLCODE | P11: 1 | R11: 1 | S11: =IF(lang=1,X11,Y11) -> Blank | X11: Blank | Y11: Vide
A12: 7 | B12: 153 | C12: BE | D12: 1573 | E12: Neepawa Area Collegiate | G12: BE | H12: 1573 | I12: NEEPAWA AREA COLLEGIATE | J12: 10 | K12: 8 | L12: Fort La Bosse | M12: FO | O12: SCHOOLNAME | P12: =IF(SCHOOLCODE=1,"",VLOOKUP(SCHOOLCODE,SCHOOLTABLE,2)) ->  | R12: 2 | S12: =IF(lang=1,X12,Y12) -> Full | T12: 1 | U12: Full Day | X12: Full | Y12: Entier
A13: 8 | B13: 153 | C13: BE | D13: 2320 | E13: Neepawa Middle School | G13: BE | H13: 2320 | I13: NEEPAWA MIDDLE SCHOOL | J13: 40 | K13: 9 | L13: Frontier | M13: FR | O13: SCHOOLCODE1 | P13: 5 | R13: 3 | S13: =IF(lang=1,X13,Y13) -> A.M. | T13: 0.5 | U13: A.M. | X13: A.M. | Y13: av.-midi
A14: 9 | B14: 153 | C14: BE | D14: 1645 | E14: R. J. Waugh Elementary | G14: BE | H14: 1645 | I14: R. J. WAUGH ELEMENTARY | J14: 14 | K14: 10 | L14: Garden Valley | M14: GA | O14: SCHOOLNAME1 | P14: =IF(SCHOOLCODE1=1,"",VLOOKUP(SCHOOLCODE1,SCHOOLTABLE,2)) ->  | R14: 4 | S14: =IF(lang=1,X14,Y14) -> P.M. | T14: 0.5 | U14: P.M. | X14: P.M. | Y14: apr.-midi
A15: 10 | B15: 153 | C15: BE | D15: 1574 | E15: Riverbend Colony School | G15: BE | H15: 1574 | I15: RIVERBEND COLONY SCHOOL | J15: 19 | K15: 11 | L15: Hanover | M15: HA | O15: SCHOOLCODE2 | P15: 1
A16: 11 | B16: 153 | C16: BE | D16: 1734 | E16: Riverside Colony School | G16: BE | H16: 1734 | I16: RIVERSIDE COLONY SCHOOL | J16: 22 | K16: 12 | L16: Interlake | M16: IN | O16: SCHOOLNAME2 | P16: =IF(SCHOOLCODE2=1,"",VLOOKUP(SCHOOLCODE2,SCHOOLTABLE,2)) ->  | R16: DAYCODE1 | S16: 1
A17: 12 | B17: 153 | C17: BE | D17: 2236 | E17: Rolling Acres School | G17: BE | H17: 2236 | I17: ROLLING ACRES SCHOOL | J17: 5 | K17: 13 | L17: Kelsey | M17: KE | O17: SCHOOLCODE3 | P17: 1 | R17: DAYCODE2 | S17: 1
A18: 13 | B18: 153 | C18: BE | D18: 1221 | E18: Spruce Woods School | G18: BE | H18: 1221 | I18: SPRUCE WOOD SCHOOL | J18: 10 | K18: 14 | L18: Lakeshore | M18: LA | O18: SCHOOLNAME3 | P18: =IF(SCHOOLCODE3=1,"",VLOOKUP(SCHOOLCODE3,SCHOOLTABLE,2)) ->  | R18: DAYCODE3 | S18: 1
A19: 14 | B19: 153 | C19: BE | D19: 2127 | E19: Twilight Colony School | G19: BE | H19: 2127 | I19: TWILIGHT COLONY SCHOOL | J19: 15 | K19: 15 | L19: Lord Selkirk | M19: LO | O19: SCHOOLCODE4 | P19: 1 | R19: DAYCODE4 | S19: 1
A20: 15 | B20: 153 | C20: BE | D20: 1311 | E20: Willerton School | G20: BE | H20: 1311 | I20: WILLERTON SCHOOL | J20: 40 | K20: 16 | L20: Louis Riel | M20: LR | O20: SCHOOLNAME4 | P20: =IF(SCHOOLCODE4=1,"",VLOOKUP(SCHOOLCODE4,SCHOOLTABLE,2)) ->  | R20: DAYCODE5 | S20: 1
A21: 16 | B21: 185 | C21: BO | D21: 2086 | E21: Blue Clay Colony School | G21: BO | H21: 2086 | I21: BLUE CLAY COLONY SCHOOL | J21: 16 | K21: 17 | L21: Mountain View | M21: MO | O21: SCHOOLCODE5 | P21: 1 | R21: DAYCODE6 | S21: 1
A22: 17 | B22: 185 | C22: BO | D22: 1730 | E22: École Elmwood School | G22: BO | H22: 1730 | I22: ÉCOLE ELMWOOD SCHOOL | J22: 7 | K22: 18 | L22: Mystery Lake School District | M22: MY | O22: SCHOOLNAME5 | P22: =IF(SCHOOLCODE5=1,"",VLOOKUP(SCHOOLCODE5,SCHOOLTABLE,2)) ->  | R22: DAYCODE7 | S22: 1
A23: 18 | B23: 185 | C23: BO | D23: 1721 | E23: École Parkside School | G23: BO | H23: 1721 | I23: ÉCOLE PARKSIDE SCHOOL | J23: 15 | K23: 19 | L23: Park West | M23: PA | O23: SCHOOLCODE6 | P23: 1 | R23: DAYCODE8 | S23: 1
A24: 19 | B24: 185 | C24: BO | D24: 1533 | E24: École West Park School | G24: BO | H24: 1533 | I24: ÉCOLE WEST PARK SCHOOL | J24: 35 | K24: 20 | L24: Pembina Trails | M24: PE | O24: SCHOOLNAME6 | P24: =IF(SCHOOLCODE6=1,"",VLOOKUP(SCHOOLCODE6,SCHOOLTABLE,2)) ->  | R24: DAYCODE9 | S24: 1
A25: 20 | B25: 185 | C25: BO | D25: 1177 | E25: Emerson Elementary | G25: BO | H25: 1177 | I25: EMERSON ELEMENTARY | J25: 14 | K25: 21 | L25: Pine Creek | M25: PI | O25: SCHOOLCODE7 | P25: 1 | R25: DAYCODE10 | S25: 1
A26: 21 | B26: 185 | C26: BO | D26: 1380 | E26: Glenway Colony School | G26: BO | H26: 1380 | I26: GLENWAY COLONY SCHOOL | J26: 18 | K26: 22 | L26: Portage La Prairie | M26: PO | O26: SCHOOLNAME7 | P26: =IF(SCHOOLCODE7=1,"",VLOOKUP(SCHOOLCODE7,SCHOOLTABLE,2)) -> 
A27: 22 | B27: 185 | C27: BO | D27: 2290 | E27: Green Ridge School | G27: BO | H27: 2290 | I27: GREEN RIDGE SCHOOL | J27: 26 | K27: 23 | L27: Prairie Rose | M27: PR | O27: SCHOOLCODE8 | P27: 1
A28: 23 | B28: 185 | C28: BO | D28: 1786 | E28: Gretna Elementary | G28: BO | H28: 1786 | I28: GRETNA ELEMENTARY | J28: 29 | K28: 24 | L28: Prairie Spirit | M28: PS | O28: SCHOOLNAME8 | P28: =IF(SCHOOLCODE8=1,"",VLOOKUP(SCHOOLCODE8,SCHOOLTABLE,2)) -> 
A29: 24 | B29: 185 | C29: BO | D29: 2286 | E29: Horizon Colony School | G29: BO | H29: 2286 | I29: HORIZON COLONY SCHOOL | J29: 13 | K29: 25 | L29: Red River Valley | M29: RE
A30: 25 | B30: 185 | C30: BO | D30: 2122 | E30: Pineland Colony School | G30: BO | H30: 2122 | I30: PINELAND COLONY SCHOOL | J30: 42 | K30: 26 | L30: River East Transcona | M30: RI | Q30: If Range("DIVCODE") = "CODE" Then
A31: 26 | B31: 185 | C31: BO | D31: 2123 | E31: Ridgeville Colony School | G31: BO | H31: 2123 | I31: RIDGEVILLE COLONY SCHOOL | J31: 17 | K31: 27 | L31: Rolling River | M31: RO | Q31: Application.Run "Finish"
A32: 27 | B32: 185 | C32: BO | D32: 1658 | E32: Roseau Valley School | G32: BO | H32: 1658 | I32: ROSEAU VALLEY SCHOOL | J32: 15 | K32: 28 | L32: Seine River | M32: SE | Q32: Else
A33: 28 | B33: 185 | C33: BO | D33: 1344 | E33: Rosenfeld Elementary | G33: BO | H33: 1344 | I33: ROSENFELD ELEMENTARY | J33: 26 | K33: 29 | L33: Seven Oaks | M33: SO | Q33: Application.Run "rows"
A34: 29 | B34: 185 | C34: BO | D34: 1059 | E34: Ross L. Gray School | G34: BO | H34: 1059 | I34: ROSS L. GRAY SCHOOL | J34: 13 | K34: 30 | L34: Southwest Horizon | M34: SR | Q34: End If
A35: 30 | B35: 185 | C35: BO | D35: 1551 | E35: Shevchenko School | G35: BO | H35: 1551 | I35: SHEVCHENKO SCHOOL | J35: 26 | K35: 31 | L35: St. James - Assiniboia | M35: ST
A36: 31 | B36: 185 | C36: BO | D36: 1778 | E36: W. C. Miller Collegiate | G36: BO | H36: 1778 | I36: W. C. MILLER COLLEGIATE | J36: 19 | K36: 32 | L36: Sunrise | M36: SU
A37: 32 | B37: 119 | C37: BR | D37: 1901 | E37: Alexander School | G37: BR | H37: 1901 | I37: ALEXANDER SCHOOL | J37: 7 | K37: 33 | L37: Swan Valley | M37: SW
A38: 33 | B38: 119 | C38: BR | D38: 1325 | E38: Betty Gibson School | G38: BR | H38: 1325 | I38: BETTY GIBSON SCHOOL | J38: 7 | K38: 34 | L38: Turtle Mountain | M38: TM
A39: 34 | B39: 119 | C39: BR | D39: 1302 | E39: Crocus Plains Regional Secondary | G39: BR | H39: 1302 | I39: CROCUS PLAINS REGIONAL SECONDARY | J39: 7 | K39: 35 | L39: Turtle River | M39: TR
A40: 35 | B40: 119 | C40: BR | D40: 1371 | E40: Earl Oxford School | G40: BR | H40: 1371 | I40: EARL OXFORD SCHOOL | J40: 4 | K40: 36 | L40: Western | M40: WE
A41: 36 | B41: 119 | C41: BR | D41: 1449 | E41: École Harrison | G41: BR | H41: 1449 | I41: ÉCOLE HARRISON | J41: 81 | K41: 37 | L41: Winnipeg | M41: WI
A42: 37 | B42: 119 | C42: BR | D42: 1007 | E42: George Fitton School | G42: BR | H42: 1007 | I42: GEORGE FITTON SCHOOL | J42: 2 | K42: 38 | L42: Whiteshell | M42: XW
A43: 38 | B43: 119 | C43: BR | D43: 1112 | E43: Green Acres School | G43: BR | H43: 1112 | I43: GREEN ACRES SCHOOL
A44: 39 | B44: 119 | C44: BR | D44: 1270 | E44: J. R. Reid School | G44: BR | H44: 1270 | I44: J. R. REID SCHOOL
A45: 40 | B45: 119 | C45: BR | D45: 1660 | E45: King George School | G45: BR | H45: 1660 | I45: KING GEORGE SCHOOL
A46: 41 | B46: 119 | C46: BR | D46: 1987 | E46: Kirkcaldy Heights School | G46: BR | H46: 1987 | I46: KIRKCALDY HEIGHTS SCHOOL
A47: 42 | B47: 119 | C47: BR | D47: 1631 | E47: Linden Lanes School | G47: BR | H47: 1631 | I47: LINDEN LANES SCHOOL
A48: 43 | B48: 119 | C48: BR | D48: 2327 | E48: Maryland Park School | G48: BR | H48: 2327 | I48: MARYLAND PARK SCHOOL
A49: 44 | B49: 119 | C49: BR | D49: 1706 | E49: Meadows School | G49: BR | H49: 1706 | I49: MEADOWS SCHOOL
A50: 45 | B50: 119 | C50: BR | D50: 1758 | E50: Neelin High | G50: BR | H50: 1758 | I50: NEELIN HIGH
A51: 46 | B51: 119 | C51: BR | D51: 1215 | E51: New Era School | G51: BR | H51: 1215 | I51: NEW ERA SCHOOL
A52: 47 | B52: 119 | C52: BR | D52: 1845 | E52: O'Kelly School | G52: BR | H52: 1845 | I52: O'KELLY SCHOOL
A53: 48 | B53: 119 | C53: BR | D53: 2321 | E53: Prairie Hope High School | G53: BR | H53: 2321 | I53: PRAIRIE HOPE HIGH SCHOOL
A54: 49 | B54: 119 | C54: BR | D54: 1604 | E54: Riverheights School | G54: BR | H54: 1604 | I54: RIVERHEIGHTS SCHOOL
A55: 50 | B55: 119 | C55: BR | D55: 1603 | E55: Riverview School | G55: BR | H55: 1603 | I55: RIVERVIEW SCHOOL
A56: 51 | B56: 119 | C56: BR | D56: 1037 | E56: Spring Valley Colony School | G56: BR | H56: 1037 | I56: SPRING VALLEY COLONY SCHOOL
A57: 52 | B57: 119 | C57: BR | D57: 1593 | E57: St. Augustine School | G57: BR | H57: 1593 | I57: ST. AUGUSTINE SCHOOL
A58: 53 | B58: 119 | C58: BR | D58: 1700 | E58: Valleyview Centennial School | G58: BR | H58: 1700 | I58: VALLEYVIEW CENTENNIAL SCHOOL
A59: 54 | B59: 119 | C59: BR | D59: 1880 | E59: Vincent Massey High | G59: BR | H59: 1880 | I59: VINCENT MASSEY HIGH
A60: 55 | B60: 119 | C60: BR | D60: 2048 | E60: Waverly Park School | G60: BR | H60: 2048 | I60: WAVERLY PARK SCHOOL
A61: 56 | B61: 140 | C61: DI | D61: 2255 | E61: Centre Scolaire Léo-Rémillard | G61: DI | H61: 2255 | I61: CENTRE SCOLAIRE LÉO-RÉMILLARD
A62: 57 | B62: 140 | C62: DI | D62: 1287 | E62: Collège Louis-Riel | G62: DI | H62: 1287 | I62: COLLÈGE LOUIS-RIEL
A63: 58 | B63: 140 | C63: DI | D63: 1332 | E63: École Christine-Lespérance | G63: DI | H63: 1332 | I63: ÉCOLE CHRISTINE-LESPÉRANCE
A64: 59 | B64: 140 | C64: DI | D64: 2078 | E64: École Communautaire Aurèle-Lemoine | G64: DI | H64: 2078 | I64: ÉCOLE COMMUNAUTAIRE AURÈLE-LEMOINE
A65: 60 | B65: 140 | C65: DI | D65: 2147 | E65: École Communautaire Gilbert-Rosset | G65: DI | H65: 2147 | I65: ÉCOLE COMMUNAUTAIRE GILBERT-ROSSET
A66: 61 | B66: 140 | C66: DI | D66: 2267 | E66: École Communautaire La Voie Du Nord | G66: DI | H66: 2267 | I66: ÉCOLE COMMUNAUTAIRE LA VOIE DU NORD
A67: 62 | B67: 140 | C67: DI | D67: 1870 | E67: École Communautaire Réal-Bérard | G67: DI | H67: 1870 | I67: ÉCOLE COMMUNAUTAIRE RÉAL-BÉRARD
A68: 63 | B68: 140 | C68: DI | D68: 2091 | E68: École Communautaire Saint-Georges | G68: DI | H68: 2091 | I68: ÉCOLE COMMUNAUTAIRE SAINT-GEORGES
A69: 64 | B69: 140 | C69: DI | D69: 2104 | E69: École Jours De Plaine | G69: DI | H69: 2104 | I69: ÉCOLE JOURS DE PLAINE
A70: 65 | B70: 140 | C70: DI | D70: 2231 | E70: École La Source | G70: DI | H70: 2231 | I70: ÉCOLE LA SOURCE
A71: 66 | B71: 140 | C71: DI | D71: 1180 | E71: École Lacerte | G71: DI | H71: 1180 | I71: ÉCOLE LACERTE
A72: 67 | B72: 140 | C72: DI | D72: 1770 | E72: École Lagimodière | F72: =IF(D72=H72,"","x") ->  | G72: DI | H72: 1770 | I72: ÉCOLE LAGIMODIÈRE
A73: 68 | B73: 140 | C73: DI | D73: 1204 | E73: École Noël-Ritchot | G73: DI | H73: 1204 | I73: ÉCOLE NOËL-RITCHOT
A74: 69 | B74: 140 | C74: DI | D74: 2329 | E74: École Nord-Est | G74: DI | H74: 2329 | I74: ÉCOLE NORD-EST
A75: =A74+1 -> 70 | B75: 140 | C75: DI | D75: 1648 | E75: École Pointe-Des-Chênes | G75: DI | H75: 1648 | I75: ÉCOLE POINTE-DES-CHÊNES
A76: =A75+1 -> 71 | B76: 140 | C76: DI | D76: 1887 | E76: École Précieux-Sang | G76: DI | H76: 1887 | I76: ÉCOLE PRÉCIEUX-SANG
A77: 72 | B77: 140 | C77: DI | D77: 1671 | E77: École Régionale Notre-Dame | G77: DI | H77: 1671 | I77: ÉCOLE RÉGIONALE NOTRE-DAME
A78: 73 | B78: 140 | C78: DI | D78: 1152 | E78: École Régionale Saint-Jean-Baptiste | G78: DI | H78: 1152 | I78: ÉCOLE RÉGIONALE SAINT-JEAN-BAPTISTE
A79: 74 | B79: 140 | C79: DI | D79: 2211 | E79: École Roméo-Dallaire | G79: DI | H79: 2211 | I79: ÉCOLE ROMÉO-DALLAIRE
A80: 75 | B80: 140 | C80: DI | D80: 1319 | E80: École Sainte-Agathe | G80: DI | H80: 1319 | I80: ÉCOLE SAINTE-AGATHE
A81: 76 | B81: 140 | C81: DI | D81: 1399 | E81: École Saint-Joachim | G81: DI | H81: 1399 | I81: ÉCOLE SAINT-JOACHIM
A82: 77 | B82: 140 | C82: DI | D82: 1350 | E82: École Saint-Lazare | G82: DI | H82: 1350 | I82: ÉCOLE SAINT-LAZARE
A83: 78 | B83: 140 | C83: DI | D83: 1808 | E83: École Taché | G83: DI | H83: 1808 | I83: ÉCOLE TACHÉ
A84: 79 | B84: 140 | C84: DI | D84: 1557 | E84: École/Coll. Rég. Gabrielle-Roy | G84: DI | H84: 1557 | I84: ÉCOLE/COLLÈGE RÉGIONALE GABRIELLE-ROY
A85: 80 | B85: 144 | C85: EV | D85: 1587 | E85: Arborg Collegiate | G85: EV | H85: 1587 | I85: ARBORG COLLEGIATE
A86: 81 | B86: 144 | C86: EV | D86: 1423 | E86: Arborg Early/Middle Years School | G86: EV | H86: 1423 | I86: ARBORG EARLY/MIDDLE YEARS SCHOOL
A87: 82 | B87: 144 | C87: EV | D87: 1300 | E87: Dr. George Johnson Middle School | G87: EV | H87: 1300 | I87: DR. GEORGE JOHNSON MIDDLE SCHOOL
A88: 83 | B88: 144 | C88: EV | D88: 1368 | E88: Gimli High School | G88: EV | H88: 1368 | I88: GIMLI HIGH SCHOOL
A89: 84 | B89: 144 | C89: EV | D89: 1857 | E89: Riverton Collegiate | G89: EV | H89: 1857 | I89: RIVERTON COLLEGIATE
A90: 85 | B90: 144 | C90: EV | D90: 2133 | E90: Riverton Early Middle Years School | G90: EV | H90: 2133 | I90: RIVERTON EARLY MIDDLE YEARS SCHOOL
A91: 86 | B91: 144 | C91: EV | D91: 2212 | E91: Sigurbjorg Stefansson Early School | G91: EV | H91: 2212 | I91: SIGURBJORG STEFANSSON EARLY SCHOOL
A92: 87 | B92: 144 | C92: EV | D92: 1601 | E92: Winnipeg Beach School | G92: EV | H92: 1601 | I92: WINNIPEG BEACH SCHOOL
A93: 88 | B93: 150 | C93: FL | D93: 1178 | E93: École Mcisaac School | G93: FL | H93: 1178 | I93: ÉCOLE MCISAAC SCHOOL
A94: 89 | B94: 150 | C94: FL | D94: 1865 | E94: Hapnot Collegiate | G94: FL | H94: 1865 | I94: HAPNOT COLLEGIATE
A95: 90 | B95: 150 | C95: FL | D95: 2085 | E95: Many Faces Education Centre | G95: FL | H95: 2085 | I95: MANY FACES EDUCATION CENTRE
A96: 91 | B96: 150 | C96: FL | D96: 1736 | E96: Ruth Betts Community School | G96: FL | H96: 1736 | I96: RUTH BETTS COMMUNITY SCHOOL
A97: 92 | B97: 103 | C97: FO | D97: 2121 | E97: Boundary Lane Colony School | G97: FO | H97: 2121 | I97: BOUNDARY LANE COLONY SCHOOL
A98: 93 | B98: 103 | C98: FO | D98: 1476 | E98: Elkhorn School | G98: FO | H98: 1476 | I98: ELKHORN SCHOOL
A99: 94 | B99: 103 | C99: FO | D99: 1224 | E99: Goulter School | G99: FO | H99: 1224 | I99: GOULTER SCHOOL
A100: 95 | B100: 103 | C100: FO | D100: 1672 | E100: Kola School | G100: FO | H100: 1672 | I100: KOLA SCHOOL
A101: 96 | B101: 103 | C101: FO | D101: 1902 | E101: Mary Montgomery School | G101: FO | H101: 1902 | I101: MARY MONTGOMERY SCHOOL
A102: 97 | B102: 103 | C102: FO | D102: 1711 | E102: Oak Lake Community School | G102: FO | H102: 1711 | I102: OAK LAKE COMMUNITY SCHOOL
A103: 98 | B103: 103 | C103: FO | D103: 1313 | E103: Plainview Colony School | G103: FO | H103: 1313 | I103: PLAINVIEW COLONY SCHOOL
A104: 99 | B104: 103 | C104: FO | D104: 1427 | E104: Reston School | G104: FO | H104: 1427 | I104: RESTON SCHOOL
A105: 100 | B105: 103 | C105: FO | D105: 1043 | E105: Virden Collegiate | G105: FO | H105: 1043 | I105: VIRDEN COLLEGIATE
A106: 101 | B106: 103 | C106: FO | D106: 1567 | E106: Virden Junior High | G106: FO | H106: 1567 | I106: VIRDEN JUNIOR HIGH
A107: 102 | B107: 192 | C107: FR | D107: 1820 | E107: Barrows Junction School | G107: FR | H107: 1820 | I107: BARROWS JUNCTION SCHOOL
A108: 103 | B108: 192 | C108: FR | D108: 1680 | E108: Berens River School | G108: FR | H108: 1680 | I108: BERENS RIVER SCHOOL
A109: 104 | B109: 192 | C109: FR | D109: 1408 | E109: Black River Anishinabe School | G109: FR | H109: 1408 | I109: BLACK RIVER ANISHINABE SCHOOL
A110: 105 | B110: 192 | C110: FR | D110: 1522 | E110: Brochet School | G110: FR | H110: 1522 | I110: BROCHET SCHOOL
A111: 106 | B111: 192 | C111: FR | D111: 1934 | E111: Chan Kagha Otina Dakota Wayawa Tipi Sch. | G111: FR | H111: 1934 | I111: CHAN KAGHA OTINA DAKOTA WAYAWA TIPI SCH.
A112: 107 | B112: 192 | C112: FR | D112: 1031 | E112: Cold Lake School | G112: FR | H112: 1031 | I112: COLD LAKE SCHOOL
A113: 108 | B113: 192 | C113: FR | D113: 1839 | E113: Cormorant Lake School | G113: FR | H113: 1839 | I113: CORMORANT LAKE SCHOOL
A114: 109 | B114: 192 | C114: FR | D114: 1595 | E114: Cranberry Portage Elementary | G114: FR | H114: 1595 | I114: CRANBERRY PORTAGE ELEMENTARY
A115: 110 | B115: 192 | C115: FR | D115: 1008 | E115: D. R. Hamilton School | G115: FR | H115: 1008 | I115: D. R. HAMILTON SCHOOL
A116: 111 | B116: 192 | C116: FR | D116: 1968 | E116: Dauphin River School | G116: FR | H116: 1968 | I116: DAUPHIN RIVER SCHOOL
A117: 112 | B117: 192 | C117: FR | D117: 1788 | E117: Duck Bay School | G117: FR | H117: 1788 | I117: DUCK BAY SCHOOL
A118: 113 | B118: 192 | C118: FR | D118: 1904 | E118: Duke Of Marlborough School | G118: FR | H118: 1904 | I118: DUKE OF MARLBOROUGH SCHOOL
A119: 114 | B119: 192 | C119: FR | D119: 1984 | E119: Falcon Beach School | G119: FR | H119: 1984 | I119: FALCON BEACH SCHOOL
A120: 115 | B120: 192 | C120: FR | D120: 1852 | E120: Frontier Collegiate Institute | G120: FR | H120: 1852 | I120: FRONTIER COLLEGIATE
A121: 116 | B121: 192 | C121: FR | D121: 1528 | E121: Frontier Mosakahiken School | G121: FR | H121: 1528 | I121: FRONTIER MOSAKAHIKEN SCHOOL
A122: 117 | B122: 192 | C122: FR | D122: 1024 | E122: Gillam School | G122: FR | H122: 1024 | I122: GILLAM SCHOOL
A123: 118 | B123: 192 | C123: FR | D123: 1278 | E123: Grand Rapids School | G123: FR | H123: 1278 | I123: GRAND RAPIDS SCHOOL
A124: 119 | B124: 192 | C124: FR | D124: 2021 | E124: Gypsumville School | G124: FR | H124: 2021 | I124: GYPSUMVILLE SCHOOL
A125: 120 | B125: 192 | C125: FR | D125: 2232 | E125: Helen Betty Osborne Ininiw Edu. Res. Ctr | G125: FR | H125: 2232 | I125: HELEN BETTY OSBORNE ININIW EDU. RES. CTR
A126: 121 | B126: 192 | C126: FR | D126: 1925 | E126: Jack River School | G126: FR | H126: 1925 | I126: JACK RIVER SCHOOL
A127: 122 | B127: 192 | C127: FR | D127: 1164 | E127: Joseph H. Kerr School | G127: FR | H127: 1164 | I127: JOSEPH H. KERR SCHOOL
A128: 123 | B128: 192 | C128: FR | D128: 1279 | E128: Julie Lindal School | G128: FR | H128: 1279 | I128: JULIE LINDAL SCHOOL
A129: 124 | B129: 192 | C129: FR | D129: 1303 | E129: Lakefront School | G129: FR | H129: 1303 | I129: LAKEFRONT SCHOOL
A130: 125 | B130: 192 | C130: FR | D130: 1811 | E130: Leaf Rapids Education Centre | G130: FR | H130: 1811 | I130: LEAF RAPIDS EDUCATION CENTRE
A131: 126 | B131: 192 | C131: FR | D131: 1271 | E131: Matheson Island School | G131: FR | H131: 1271 | I131: MATHESON ISLAND SCHOOL
A132: 127 | B132: 192 | C132: FR | D132: 1682 | E132: Mel Johnson School | G132: FR | H132: 1682 | I132: MEL JOHNSON SCHOOL
A133: 128 | B133: 192 | C133: FR | D133: 1516 | E133: Minegoziibe Anishinabe School | G133: FR | H133: 1516 | I133: MINEGOZIIBE ANISHINABE SCHOOL
A134: 129 | B134: 192 | C134: FR | D134: 2118 | E134: Ministic School | G134: FR | H134: 2118 | I134: MINISTIC SCHOOL
A135: 130 | B135: 192 | C135: FR | D135: 1032 | E135: Oscar Blackburn School | G135: FR | H135: 1032 | I135: OSCAR BLACKBURN SCHOOL
A136: 131 | B136: 192 | C136: FR | D136: 2213 | E136: Peonan Point School | F136: =IF(D136=H136,"","x") ->  | G136: FR | H136: 2213 | I136: PEONAN POINT SCHOOL
A137: 132 | B137: 192 | C137: FR | D137: 1850 | E137: Philomene Chartrand School | G137: FR | H137: 1850 | I137: PHILOMENE CHARTRAND SCHOOL
A138: 133 | B138: 192 | C138: FR | D138: 1099 | E138: Pikwitonei School | G138: FR | H138: 1099 | I138: PIKWITONEI SCHOOL
A139: =A138+1 -> 134 | B139: 192 | C139: FR | D139: 1185 | E139: Rorketon School | G139: FR | H139: 1185 | I139: RORKETON SCHOOL
A140: 135 | B140: 192 | C140: FR | D140: 1911 | E140: San Antonio School | G140: FR | H140: 1911 | I140: SAN ANTONIO SCHOOL
A141: 136 | B141: 192 | C141: FR | D141: 2023 | E141: Skownan School | G141: FR | H141: 2023 | I141: SKOWNAN SCHOOL
A142: 137 | B142: 192 | C142: FR | D142: 1688 | E142: Stevenson Island School | G142: FR | H142: 1688 | I142: STEVENSON ISLAND SCHOOL
A143: 138 | B143: 192 | C143: FR | D143: 1605 | E143: Thicket Portage School | G143: FR | H143: 1605 | I143: THICKET PORTAGE SCHOOL
A144: 139 | B144: 192 | C144: FR | D144: 1681 | E144: Wanipigow School | G144: FR | H144: 1681 | I144: WANIPIGOW SCHOOL
A145: 140 | B145: 192 | C145: FR | D145: 1890 | E145: Waterhen School | G145: FR | H145: 1890 | I145: WATERHEN SCHOOL
A146: 141 | B146: 192 | C146: FR | D146: 1073 | E146: West Lynn Heights School | G146: FR | H146: 1073 | I146: WEST LYNN HEIGHTS SCHOOL
A147: 142 | B147: 105 | C147: GA | D147: 1334 | E147: Blumenfeld School | G147: GA | H147: 1334 | I147: BLUMENFELD SCHOOL
A148: 143 | B148: 105 | C148: GA | D148: 1444 | E148: Border Valley Elementary | G148: GA | H148: 1444 | I148: BORDER VALLEY ELEMENTARY
A149: 144 | B149: 105 | C149: GA | D149: 1107 | E149: Edelweiss School | G149: GA | H149: 1107 | I149: EDELWEISS SCHOOL
A150: 145 | B150: 105 | C150: GA | D150: 2248 | E150: Emerado Centennial | G150: GA | H150: 2248 | I150: EMERADO CENTENNIAL
A151: 146 | B151: 105 | C151: GA | D151: 1565 | E151: Garden Valley Collegiate | G151: GA | H151: 1565 | I151: GARDEN VALLEY COLLEGIATE
A152: 147 | B152: 105 | C152: GA | D152: 1339 | E152: Hochfeld School | G152: GA | H152: 1339 | I152: HOCHFELD SCHOOL
A153: 148 | B153: 105 | C153: GA | D153: 1544 | E153: J. R. Walkof Elementary | G153: GA | H153: 1544 | I153: J. R. WALKOF ELEMENTARY
A154: 149 | B154: 105 | C154: GA | D154: 2285 | E154: Northlands Parkway Collegiate | G154: GA | H154: 2285 | I154: NORTHLANDS PARKWAY COLLEGIATE
A155: 150 | B155: 105 | C155: GA | D155: 2053 | E155: Parkland Elementary School | G155: GA | H155: 2053 | I155: PARKLAND ELEMENTARY SCHOOL
A156: 151 | B156: 105 | C156: GA | D156: 2316 | E156: Pine Ridge Elementary School | G156: GA | H156: 2316 | I156: PINE RIDGE ELEMENTARY SCHOOL
A157: 152 | B157: 105 | C157: GA | D157: 1717 | E157: Plum Coulee School | G157: GA | H157: 1717 | I157: PLUM COULEE SCHOOL
A158: 153 | B158: 105 | C158: GA | D158: 2275 | E158: Prairie Dale School | G158: GA | H158: 2275 | I158: PRAIRIE DALE SCHOOL
A159: 154 | B159: 105 | C159: GA | D159: 1091 | E159: Southwood Elementary | G159: GA | H159: 1091 | I159: SOUTHWOOD ELEMENTARY
A160: 155 | B160: 105 | C160: GA | D160: 1124 | E160: Winkler Elementary | G160: GA | H160: 1124 | I160: WINKLER ELEMENTARY
A161: 156 | B161: 174 | C161: HA | D161: 1122 | E161: Blumenort School | G161: HA | H161: 1122 | I161: BLUMENORT SCHOOL
A162: 157 | B162: 174 | C162: HA | D162: 1882 | E162: Bothwell School | G162: HA | H162: 1882 | I162: BOTHWELL SCHOOL
A163: 158 | B163: 174 | C163: HA | D163: 2282 | E163: Clearspring Middle School | G163: HA | H163: 2282 | I163: CLEARSPRING MIDDLE SCHOOL
A164: 159 | B164: 174 | C164: HA | D164: 1469 | E164: Crystal Springs School | G164: HA | H164: 1469 | I164: CRYSTAL SPRINGS SCHOOL
A165: 160 | B165: 174 | C165: HA | D165: 1198 | E165: Elmdale School | G165: HA | H165: 1198 | I165: ELMDALE SCHOOL
A166: 161 | B166: 174 | C166: HA | D166: 1693 | E166: Green Valley School | G166: HA | H166: 1693 | I166: GREEN VALLEY SCHOOL
A167: 162 | B167: 174 | C167: HA | D167: 1234 | E167: Kleefeld School | G167: HA | H167: 1234 | I167: KLEEFELD SCHOOL
A168: 163 | B168: 174 | C168: HA | D168: 1129 | E168: Landmark Collegiate | G168: HA | H168: 1129 | I168: LANDMARK COLLEGIATE
A169: 164 | B169: 174 | C169: HA | D169: 2051 | E169: Landmark Elementary School | G169: HA | H169: 2051 | I169: LANDMARK ELEMENTARY SCHOOL
A170: 165 | B170: 174 | C170: HA | D170: 1959 | E170: Mitchell Elementary School | G170: HA | H170: 1959 | I170: MITCHELL ELEMENTARY SCHOOL
A171: 166 | B171: 174 | C171: HA | D171: 2229 | E171: Mitchell Middle School | G171: HA | H171: 2229 | I171: MITCHELL MIDDLE SCHOOL
A172: 167 | B172: 174 | C172: HA | D172: 1777 | E172: Niverville Elementary | G172: HA | H172: 1777 | I172: NIVERVILLE ELEMENTARY
A173: 168 | B173: 174 | C173: HA | D173: 2319 | E173: Niverville High School | G173: HA | H173: 2319 | I173: NIVERVILLE HIGH SCHOOL
A174: 169 | B174: 174 | C174: HA | D174: 1309 | E174: Niverville Middle School | G174: HA | H174: 1309 | I174: NIVERVILLE MIDDLE SCHOOL
A175: 170 | B175: 174 | C175: HA | D175: 1590 | E175: South Oaks Elementary | G175: HA | H175: 1590 | I175: SOUTH OAKS ELEMENTARY
A176: 171 | B176: 174 | C176: HA | D176: 1513 | E176: Southwood School | G176: HA | H176: 1513 | I176: SOUTHWOOD SCHOOL
A177: 172 | B177: 174 | C177: HA | D177: 1353 | E177: Steinbach Regional Secondary | G177: HA | H177: 1353 | I177: STEINBACH REGIONAL SECONDARY
A178: 173 | B178: 174 | C178: HA | D178: 1437 | E178: Stonybrook Middle School | G178: HA | H178: 1437 | I178: STONYBROOK MIDDLE SCHOOL
A179: 174 | B179: 174 | C179: HA | D179: 1182 | E179: Woodlawn School | G179: HA | H179: 1182 | I179: WOODLAWN SCHOOL
A180: 175 | B180: 155 | C180: IN | D180: 1028 | E180: Balmoral School | G180: IN | H180: 1028 | I180: BALMORAL SCHOOL
A181: 176 | B181: 155 | C181: IN | D181: 1752 | E181: Brant-Argyle School | G181: IN | H181: 1752 | I181: BRANT-ARGYLE SCHOOL
A182: 177 | B182: 155 | C182: IN | D182: 1967 | E182: Concord School | G182: IN | H182: 1967 | I182: CONCORD SCHOOL
A183: 178 | B183: 155 | C183: IN | D183: 1106 | E183: École R. W. Bobby Bend School | G183: IN | H183: 1106 | I183: ÉCOLE R. W. BOBBY BEND SCHOOL
A184: 179 | B184: 155 | C184: IN | D184: 1282 | E184: Grosse Isle School | G184: IN | H184: 1282 | I184: GROSSE ISLE SCHOOL
A185: 180 | B185: 155 | C185: IN | D185: 1610 | E185: Kelsey School | G185: IN | H185: 1610 | I185: KELSEY SCHOOL
A186: 181 | B186: 155 | C186: IN | D186: 1283 | E186: Lightly School | G186: IN | H186: 1283 | I186: LIGHTLY SCHOOL
A187: 182 | B187: 155 | C187: IN | D187: 2143 | E187: Mallard School | G187: IN | H187: 2143 | I187: MALLARD SCHOOL
A188: 183 | B188: 155 | C188: IN | D188: 2299 | E188: Meadow Lane School | G188: IN | H188: 2299 | I188: MEADOW LANE SCHOOL
A189: 184 | B189: 155 | C189: IN | D189: 1205 | E189: New Haven School | G189: IN | H189: 1205 | I189: NEW HAVEN SCHOOL
A190: 185 | B190: 155 | C190: IN | D190: 1433 | E190: Omega School | G190: IN | H190: 1433 | I190: OMEGA SCHOOL
A191: 186 | B191: 155 | C191: IN | D191: 2113 | E191: Prairie Blossom School | G191: IN | H191: 2113 | I191: PRAIRIE BLOSSOM SCHOOL
A192: 187 | B192: 155 | C192: IN | D192: 1572 | E192: Rock Lake School | G192: IN | H192: 1572 | I192: ROCK LAKE SCHOOL
A193: 188 | B193: 155 | C193: IN | D193: 1346 | E193: Rosser School | G193: IN | H193: 1346 | I193: ROSSER SCHOOL
A194: 189 | B194: 155 | C194: IN | D194: 1879 | E194: Stonewall Centennial School | G194: IN | H194: 1879 | I194: STONEWALL CENTENNIAL SCHOOL
A195: 190 | B195: 155 | C195: IN | D195: 1145 | E195: Stonewall Collegiate | G195: IN | H195: 1145 | I195: STONEWALL COLLEGIATE
A196: 191 | B196: 155 | C196: IN | D196: 1381 | E196: Stony Mountain Elementary | G196: IN | H196: 1381 | I196: STONY MOUNTAIN ELEMENTARY
A197: 192 | B197: 155 | C197: IN | D197: 1650 | E197: Teulon Collegiate | G197: IN | H197: 1650 | I197: TEULON COLLEGIATE
A198: 193 | B198: 155 | C198: IN | D198: 1494 | E198: Teulon Elementary | G198: IN | H198: 1494 | I198: TEULON ELEMENTARY
A199: 194 | B199: 155 | C199: IN | D199: 1908 | E199: Warren Collegiate | G199: IN | H199: 1908 | I199: WARREN COLLEGIATE
A200: 195 | B200: 155 | C200: IN | D200: 1710 | E200: Warren Elementary | F200: =IF(D200=H200,"","x") ->  | G200: IN | H200: 1710 | I200: WARREN ELEMENTARY
... 592 more rows
